bitfinex/quotes_SOLUSD_20240912
["timestamp","ask_amount","ask_price","bid_price","bid_amount"]
[1726121061807,6.6436,135.47,135.42,6.7845896]
[1726121062498,6.6436,135.47,135.42,12.8922896]
[1726121064312,6.643,135.48,135.43,6.6453]
[1726121064617,6.643,135.48,135.44,8.12125934]
[1726121064783,6.643,135.48,135.44,6.6449]
[1726121068208,6.6427,135.49,135.44,6.6449]
[1726121073917,32.5059007,135.52,135.43,32.2462]
[1726121074211,6.644,135.46,135.43,15.6332]
[1726121075192,6.6436,135.47,135.43,15.6332]
[1726121075522,23.776884,135.51,135.42,12.8922896]
[1726121075523,6.644,135.46,135.42,6.2463896]
[1726121078915,16.6083,135.48,135.42,0.1386896]
[1726121079123,6.6454,135.43,135.42,0.1386896]
[1726121079319,6.6445,135.45,135.42,0.1386896]
[1726121080398,6.644,135.46,135.42,0.1386896]
[1726121085506,6.6435,135.47,135.42,6.7845896]
[1726121085831,6.6435,135.47,135.42,8.2611218]
[1726121086031,6.6435,135.47,135.42,7.9905218]
[1726121086433,6.6441,135.46,135.42,7.9905218]
[1726121086633,6.6441,135.46,135.42,6.5139896]
[1726121086831,6.6436,135.47,135.42,6.5139896]
[1726121087922,6.6431,135.48,135.43,30.024984]
[1726121088136,6.6431,135.48,135.43,6.2481]
[1726121089244,6.6426,135.49,135.44,6.6448]
[1726121090732,6.6421,135.5,135.45,6.6443]
[1726121092825,6.6416,135.51,135.46,6.6439]
[1726121094049,6.6416,135.51,135.47,1.47604248]
[1726121095353,6.6416,135.51,135.46,6.6439]
[1726121098838,6.6421,135.5,135.45,23.2548]
[1726121103658,0.2643903,135.52,135.46,1.47606804]
[1726121103841,0.2643903,135.52,135.46,23.776884]
[1726121104041,6.9057903,135.52,135.47,6.6433]
[1726121105842,6.9057903,135.52,135.47,6.6435]
[1726121106163,6.6415,135.51,135.46,30.420884]
[1726121106364,6.6421,135.5,135.46,6.644]
[1726121106858,6.6421,135.5,135.45,23.2548]
[1726121111675,6.6421,135.5,135.46,8.1199665]
[1726121111856,6.6416,135.51,135.46,8.1199665]
[1726121114356,6.6416,135.51,135.46,6.6439]
[1726121114574,6.6416,135.51,135.47,8.11933649]
[1726121114960,6.9055903,135.52,135.47,8.11933649]
[1726121115161,6.9055903,135.52,135.47,6.6434]
[1726121119263,6.6415,135.51,135.47,6.6434]
[1726121121573,6.6415,135.51,135.46,6.6439]
[1726121125481,6.6421,135.5,135.45,23.2548]
[1726121125987,6.6426,135.49,135.45,16.6104]
[1726121126581,6.643,135.48,135.44,16.4634]
[1726121129690,0.2643903,135.52,135.45,16.16544966]
[1726121129870,0.2643903,135.52,135.49,14.68919833]
[1726121130069,0.2643903,135.52,135.49,23.776884]
[1726121130466,6.9058903,135.52,135.46,6.6436]
[1726121130686,6.6416,135.51,135.46,6.6436]
[1726121130860,6.9054903,135.52,135.47,6.6434]
[1726121131066,0.2643903,135.52,135.48,6.6426]
[1726121131360,0.2643903,135.52,135.49,6.6425]
[1726121132988,0.2643903,135.52,135.51,14.68919833]
[1726121133202,0.2643903,135.52,135.51,45.10758233]
[1726121136461,0.2643903,135.52,135.51,30.418384]
[1726121139193,0.2643903,135.52,135.51,45.10758233]
[1726121139892,0.2643903,135.56,135.54,16.5995]
[1726121140776,0.2643903,135.56,135.54,23.2395]
[1726121142294,0.2643903,135.56,135.54,16.5995]
[1726121142592,0.2643903,135.56,135.55,6.6396]
[1726121144462,0.2643903,135.56,135.55,21.32879833]
[1726121144669,0.2643903,135.6,135.58,6.6377]
[1726121144993,0.2643903,135.6,135.59,8.11228561]
[1726121145163,0.2643903,135.6,135.58,21.32729833]
[1726121146602,0.2643903,135.6,135.58,14.68919833]
[1726121147697,0.2643903,135.6,135.58,21.32679833]
[1726121148292,0.2643903,135.6,135.59,6.6376]
[1726121149208,0.2643903,135.6,135.59,8.11219717]
[1726121149379,0.2643903,135.6,135.59,30.414484]
[1726121150021,0.2643903,135.6,135.59,31.88854054]
[1726121150315,0.2643903,135.6,135.59,47.58634054]
[1726121151388,0.2643903,135.6,135.59,66.112284]
[1726121151583,0.2643903,135.6,135.59,67.45141111]
[1726121151906,0.2643903,135.64,135.63,6.6357]
[1726121152208,0.2643903,135.64,135.63,45.10178233]
[1726121153003,0.2643903,135.64,135.63,6.6357]
[1726121153380,0.2643903,135.64,135.62,37.91529833]
[1726121153580,0.2643903,135.64,135.63,6.6357]
[1726121154883,0.2643903,135.64,135.63,31.88653842]
[1726121155088,0.2643903,135.68,135.67,6.6337]
[1726121155280,0.2643903,135.68,135.67,46.57339751]
[1726121155507,0.2643903,135.68,135.67,45.09978233]
[1726121156197,15.0709,135.73,135.67,45.09978233]
[1726121156198,0.2848966,135.69,135.67,45.09978233]
[1726121156506,0.2848966,135.69,135.66,23.2196]
[1726121156705,0.2848966,135.69,135.66,16.5855]
[1726121157081,0.2848966,135.69,135.67,23.776884]
[1726121158317,0.2848966,135.69,135.67,30.410584]
[1726121159517,0.2848966,135.69,135.66,23.2196]
[1726121159696,0.2848966,135.69,135.66,16.5855]
[1726121159887,0.2848966,135.69,135.66,31.27469833]
[1726121160606,0.3122302,135.74,135.72,6.6308]
[1726121160903,0.3122302,135.74,135.73,6.6308]
[1726121161297,0.3122302,135.74,135.73,8.10387507]
[1726121161496,0.3122302,135.74,135.73,8.10386759]
[1726121161704,0.3122302,135.74,135.71,16.579]
[1726121161900,0.3122302,135.74,135.7,6.6322]
[1726121161901,0.3122302,135.74,135.68,16.583]
[1726121162106,6.9429302,135.74,135.68,37.90499833]
[1726121162300,0.3122302,135.74,135.69,31.88251793]
[1726121162514,0.3122302,135.74,135.69,30.409084]
[1726121162896,0.3122302,135.74,135.7,6.6322]
[1726121163917,0.3122302,135.74,135.69,23.776884]
[1726121164117,6.9425302,135.74,135.69,23.776884]
[1726121164321,0.3122302,135.74,135.69,30.409384]
[1726121164616,0.3122302,135.74,135.69,30.409584]
[1726121164792,6.9426302,135.74,135.68,23.2162]
[1726121164995,6.9426302,135.74,135.68,16.583]
[1726121164996,6.6313,135.72,135.68,16.583]
[1726121165199,6.6312,135.73,135.65,37.82879833]
[1726121166117,6.6312,135.73,135.68,6.6332]
[1726121168106,15.6577,135.73,135.65,16.5866]
[1726121168307,15.6577,135.73,135.62,401.999]
[1726121168512,6.6348,135.65,135.59,16.065]
[1726121168701,23.2386,135.72,135.6,14.68919833]
[1726121169016,23.2386,135.72,135.61,6.6366]
[1726121169017,6.6341,135.67,135.61,6.6366]
[1726121169329,6.6333,135.68,135.62,6.6359]
[1726121169623,6.6333,135.68,135.63,1.47419907]
[1726121170126,6.6327,135.7,135.63,8.10979907]
[1726121170309,6.633,135.69,135.63,8.10979907]
[1726121170819,6.6592,135.72,135.64,6.6349]
[1726121171016,6.6592,135.72,135.65,23.776884]
[1726121171416,6.6592,135.72,135.67,30.410584]
[1726121171620,6.6592,135.72,135.67,16.584]
[1726121171825,13.2905,135.72,135.67,23.2176]
[1726121172234,13.2905,135.72,135.67,16.584]
[1726121173730,6.6318,135.71,135.67,16.584]
[1726121175617,6.6318,135.71,135.67,1.47369945]
[1726121175804,6.6318,135.71,135.65,30.411484]
[1726121176005,6.6318,135.71,135.66,6.634]
[1726121178233,6.6324,135.7,135.65,30.411484]
[1726121179433,6.6592,135.72,135.62,386.2]
[1726121180439,6.6592,135.72,135.63,6.6356]
[1726121180440,6.6336,135.68,135.63,6.6356]
[1726121180809,6.6328,135.69,135.64,6.6351]
[1726121182019,6.6323,135.7,135.65,6.6344]
[1726121183834,6.6592,135.72,135.66,30.410584]
[1726121184038,20.0,135.71,135.66,30.410584]
[1726121184737,20.0,135.71,135.67,6.6336]
[1726121185536,13.2905,135.72,135.67,6.6336]
[1726121188442,6.6317,135.71,135.67,6.6336]
[1726121189748,13.2906,135.72,135.67,6.6336]
[1726121190122,15.6577,135.73,135.68,16.5826]
[1726121190343,20.0,135.72,135.68,23.2158]
[1726121190547,20.0,135.72,135.68,16.5826]
[1726121191063,26.6317,135.72,135.68,16.5826]
[1726121191618,22.2885,135.73,135.69,1.47363195]
[1726121197649,22.2885,135.73,135.68,23.2157]
[1726121198528,6.6308,135.73,135.68,23.2157]
[1726121198731,0.3122302,135.74,135.72,23.776884]
[1726121198949,0.3122302,135.74,135.73,46.51513496]
[1726121200045,0.3122302,135.74,135.73,45.04222448]
[1726121200248,0.3122302,135.74,135.73,65.16771448]
[1726121200559,0.3122302,135.74,135.73,71.59691448]
[1726121200938,0.3122302,135.74,135.73,71.47142448]
[1726121201266,0.3122302,135.74,135.73,56.836884]
[1726121201462,0.3122302,135.74,135.73,30.407684]
[1726121202366,0.3122302,135.74,135.73,6.6308]
[1726121203056,0.3122302,135.74,135.72,16.5776]
[1726121203768,0.3122302,135.74,135.73,6.6308]
[1726121204141,0.3122302,135.74,135.72,23.2088]
[1726121206465,0.3122302,135.74,135.73,6.6308]
[1726121208457,0.3122302,135.74,135.7,6.6318]
[1726121208849,0.3122302,135.74,135.71,6.6317]
[1726121211160,0.3122302,135.74,135.7,30.409084]
[1726121211367,0.3122302,135.74,135.7,6.6322]
[1726121214282,6.9425302,135.74,135.69,23.2141]
[1726121216290,0.3122302,135.74,135.7,6.6322]
[1726121217575,6.6299,135.75,135.7,6.6322]
[1726121217782,0.350966,135.74,135.7,6.6322]
[1726121218179,6.981266,135.74,135.7,6.6322]
[1726121220194,6.981266,135.74,135.69,23.2141]
[1726121223487,6.6308,135.73,135.69,16.5815]
[1726121223687,22.1497,135.73,135.69,16.5815]
[1726121223895,6.6313,135.72,135.68,6.6332]
[1726121224787,6.6318,135.71,135.67,6.6336]
[1726121225175,6.6318,135.71,135.66,23.2192]
[1726121225382,6.6327,135.69,135.64,6.6351]
[1726121225582,6.6322,135.7,135.65,6.6346]
[1726121226690,6.6328,135.69,135.64,23.776884]
[1726121227787,6.6323,135.7,135.65,6.6345]
[1726121228168,6.6328,135.69,135.64,6.635]
[1726121228371,6.6328,135.69,135.63,16.5887]
[1726121228372,15.8714,135.69,135.63,16.5887]
[1726121229399,6.6336,135.68,135.63,23.2242]
[1726121229765,22.5042,135.69,135.64,6.635]
[1726121230495,15.8714,135.69,135.65,6.6346]
[1726121231671,15.8714,135.69,135.64,14.63179492]
[1726121231866,23.1843,135.73,135.68,6.6332]
[1726121232171,16.5532,135.73,135.69,6.6327]
[1726121233470,23.184,135.73,135.68,6.6332]
[1726121235179,16.5532,135.73,135.69,6.6326]
[1726121236983,23.1841,135.73,135.68,23.776884]
[1726121237192,6.6313,135.72,135.67,23.2165]
[1726121237977,23.1841,135.73,135.68,6.633]
[1726121238391,6.6313,135.72,135.68,6.633]
[1726121238996,23.1841,135.73,135.68,6.633]
[1726121239584,16.5532,135.73,135.69,6.6326]
[1726121239978,23.184,135.73,135.68,30.409984]
[1726121240375,0.350966,135.74,135.68,38.40867892]
[1726121240582,0.350966,135.74,135.72,6.6312]
[1726121240878,0.350966,135.74,135.73,1.4730786]
[1726121244503,0.350966,135.74,135.73,8.1038786]
[1726121245603,0.350966,135.74,135.73,6.6308]
[1726121246589,0.350966,135.74,135.72,1.47315753]
[1726121246794,0.350966,135.74,135.71,23.2097]
[1726121247110,0.350966,135.74,135.73,6.6308]
[1726121248186,0.350966,135.74,135.73,31.88076834]
[1726121249600,0.350966,135.74,135.71,16.5784]
[1726121250407,0.350966,135.74,135.71,23.2101]
[1726121250708,0.350966,135.74,135.71,16.5784]
[1726121253006,0.350966,135.74,135.67,31.21519492]
[1726121253214,0.350966,135.74,135.68,1.47347239]
[1726121253385,0.350966,135.74,135.71,14.63179492]
[1726121253581,0.350966,135.74,135.73,6.6308]
[1726121254304,0.350966,135.74,135.73,8.10391554]
[1726121254481,0.350966,135.74,135.73,6.6308]
[1726121254882,0.350966,135.74,135.73,8.10391187]
[1726121255114,0.350966,135.74,135.73,6.6308]
[1726121255408,0.350966,135.74,135.72,23.2092]
[1726121255614,0.350966,135.74,135.7,6.632]
[1726121255912,0.350966,135.74,135.71,23.776884]
[1726121256287,0.350966,135.74,135.71,30.408584]
[1726121256789,0.350966,135.74,135.7,6.632]
[1726121257202,0.350966,135.74,135.71,8.10517638]
[1726121257422,0.350966,135.74,135.71,6.6317]
[1726121257715,0.350966,135.74,135.72,6.6312]
[1726121258089,0.350966,135.74,135.73,8.1040414]
[1726121258390,0.350966,135.74,135.73,6.6308]
[1726121259904,0.350966,135.74,135.73,30.407684]
[1726121268606,0.350966,135.74,135.72,16.5771]
[1726121269797,0.350966,135.74,135.72,23.2083]
[1726121271727,0.350966,135.74,135.7,23.776884]
[1726121272605,0.350966,135.74,135.69,16.5815]
[1726121272807,0.350966,135.74,135.7,6.6322]
[1726121273009,0.350966,135.74,135.71,1.47342332]
[1726121273717,0.350966,135.74,135.71,6.6315]
[1726121274346,0.350966,135.74,135.7,6.6322]
[1726121275067,6.981266,135.74,135.69,23.2142]
[1726121276146,6.6315,135.72,135.67,30.410184]
[1726121276433,6.6309,135.73,135.68,6.633]
[1726121277414,0.350966,135.74,135.66,16.5853]
[1726121277637,6.6318,135.71,135.66,23.2192]
[1726121277943,0.350966,135.74,135.67,6.6336]
[1726121279335,6.6314,135.72,135.67,6.6336]
[1726121280534,6.6314,135.72,135.66,23.2194]
[1726121281232,6.6318,135.71,135.66,23.2194]
[1726121282320,0.350966,135.74,135.65,33.1733]
[1726121282321,22.2633,135.7,135.65,6.6346]
[1726121282529,15.631,135.7,135.63,16.5888]
[1726121283440,22.2633,135.7,135.65,6.6346]
[1726121286430,6.6332,135.68,135.64,6.6351]
[1726121290646,6.6338,135.67,135.63,16.5888]
[1726121291151,6.6331,135.69,135.63,23.224]
[1726121293142,6.6337,135.67,135.63,16.5888]
[1726121294849,6.6342,135.66,135.62,6.636]
[1726121295037,6.6352,135.64,135.6,23.2293]
[1726121295237,23.1069,135.65,135.6,23.2293]
[1726121295548,6.6356,135.64,135.6,16.5923]
[1726121296550,6.6358,135.63,135.59,0.1817298]
[1726121298751,22.7178,135.65,135.59,0.1817298]
[1726121298965,23.1069,135.65,135.6,23.2298]
[1726121300144,6.6352,135.64,135.6,23.2298]
[1726121301452,6.6352,135.64,135.6,16.5928]
[1726121302137,6.6357,135.63,135.59,6.8193298]
[1726121303347,6.6363,135.62,135.59,0.1817298]
[1726121312067,16.4721,135.65,135.59,0.1817298]
[1726121312068,6.6371,135.6,135.59,0.1817298]
[1726121312951,6.6366,135.61,135.59,0.1817298]
[1726121314654,23.1069,135.65,135.6,23.2293]
[1726121314848,6.6352,135.64,135.6,16.5922]
[1726121315869,6.6357,135.63,135.59,0.1817298]
[1726121319283,6.6352,135.64,135.59,6.8192298]
[1726121320078,6.6352,135.64,135.6,6.6371]
[1726121320281,23.1069,135.65,135.6,6.6371]
[1726121321159,23.1069,135.65,135.59,0.1817298]
[1726121321160,23.1069,135.65,135.59,16.7746298]
[1726121321377,6.6357,135.63,135.59,16.7746298]
[1726121321562,6.6353,135.64,135.59,23.4121298]
[1726121323361,16.4721,135.65,135.59,23.4121298]
[1726121323362,6.6357,135.63,135.59,23.4121298]
[1726121323772,6.6364,135.62,135.59,0.1817298]
[1726121325079,40.7797269,135.65,135.59,0.1817298]
[1726121326790,43.70636693,135.65,135.59,0.1817298]
[1726121327356,6.6367,135.61,135.59,0.1817298]
[1726121327767,6.6362,135.62,135.59,0.1817298]
[1726121327974,40.7797269,135.65,135.59,0.1817298]
[1726121327975,6.6357,135.63,135.59,0.1817298]
[1726121328861,7.72169788,135.67,135.6,6.6371]
[1726121329302,6.6352,135.64,135.59,6.8193298]
[1726121330324,6.6358,135.63,135.59,0.1817298]
[1726121331359,6.6358,135.63,135.59,6.8193298]
[1726121332995,6.6358,135.63,135.59,0.1817298]
[1726121334374,6.6362,135.62,135.59,0.1817298]
[1726121339187,7.71846399,135.65,135.59,0.1817298]
[1726121339188,6.6367,135.61,135.59,0.1817298]
[1726121340496,6.6371,135.6,135.59,0.1817298]
[1726121344794,6.6367,135.61,135.59,0.1817298]
[1726121344994,6.6363,135.62,135.59,0.1817298]
[1726121345594,6.6352,135.64,135.59,6.8192298]
[1726121350809,6.6352,135.64,135.59,13.1795298]
[1726121353340,6.6358,135.63,135.59,6.5420298]
[1726121357895,6.6352,135.64,135.6,6.6371]
[1726121358099,6.6352,135.64,135.61,1.47464396]
[1726121359720,6.6352,135.64,135.59,13.1795298]
[1726121366896,6.6357,135.63,135.59,13.1795298]
[1726121368607,6.6357,135.63,135.59,6.5420298]
[1726121368797,6.6367,135.61,135.59,0.1817298]
[1726121368999,16.4418,135.65,135.59,0.1817298]
[1726121369212,7.71914793,135.64,135.59,0.1817298]
[1726121369418,6.6371,135.6,135.59,0.1817298]
[1726121369608,24.30774793,135.64,135.59,0.1817298]
[1726121370237,6.6362,135.62,135.59,0.1817298]
[1726121372016,6.6357,135.63,135.59,0.1817298]
[1726121372511,6.6357,135.63,135.59,6.8193298]
[1726121373923,6.6357,135.63,135.59,0.1817298]
[1726121376307,6.6362,135.62,135.59,0.1817298]
[1726121376631,6.6358,135.63,135.59,0.1817298]
[1726121379833,6.6363,135.62,135.59,0.1817298]
[1726121380013,6.637,135.61,135.59,0.1817298]
[1726121381434,6.6371,135.6,135.59,0.1817298]
[1726121383038,6.6367,135.61,135.59,0.1817298]
[1726121383839,6.6371,135.6,135.59,0.1817298]
[1726121384130,6.6367,135.61,135.59,0.1817298]
[1726121385535,6.6371,135.6,135.59,0.1817298]
[1726121387826,6.6367,135.61,135.59,0.1817298]
[1726121389735,6.6362,135.62,135.59,0.1817298]
[1726121389937,6.6368,135.61,135.59,0.1817298]
[1726121391720,7.71708053,135.64,135.59,0.1817298]
[1726121391921,6.6357,135.63,135.59,0.1817298]
[1726121392535,6.6357,135.63,135.59,6.8192298]
[1726121393429,6.6357,135.63,135.59,0.1817298]
[1726121393837,6.6357,135.63,135.59,6.8192298]
[1726121398538,13.99801456,135.67,135.59,6.8192298]
[1726121398742,6.6353,135.64,135.59,6.8192298]
[1726121398935,6.6353,135.64,135.59,8.29397208]
[1726121399337,6.6347,135.66,135.61,6.6366]
[1726121399736,6.6349,135.65,135.61,6.6366]
[1726121403260,6.6349,135.65,135.6,27.963]
[1726121405754,15.958,135.68,135.6,37.9182]
[1726121405958,7.79943912,135.7,135.6,52.55422756]
[1726121406158,7.79943912,135.7,135.61,23.776884]
[1726121406756,6.6341,135.67,135.61,23.776884]
[1726121406933,6.6341,135.67,135.62,6.636]
[1726121407270,6.6343,135.66,135.62,6.636]
[1726121413836,7.79943912,135.7,135.63,7.60995383]
[1726121414041,7.79943912,135.7,135.63,6.6355]
[1726121414767,7.79943912,135.7,135.63,8.10979194]
[1726121415062,0.0846181,135.7,135.64,8.1091773]
[1726121415245,0.0846181,135.7,135.65,6.6345]
[1726121415562,6.7172181,135.7,135.65,6.6345]
[1726121416064,0.0846181,135.7,135.65,24.27009451]
[1726121416250,0.0846181,135.7,135.66,6.6337]
[1726121417141,0.0846181,135.7,135.67,8.10745566]
[1726121417466,0.0846181,135.7,135.68,1.47386129]
[1726121417644,0.0846181,135.7,135.69,1.47384788]
[1726121417844,0.0846181,135.7,135.68,6.633]
[1726121420546,0.0846181,135.7,135.69,6.6327]
[1726121423966,0.0846181,135.7,135.67,6.6333]
[1726121424175,0.0846181,135.7,135.62,16.5893]
[1726121424367,6.6338,135.67,135.62,23.2253]
[1726121424754,6.6332,135.68,135.63,6.6356]
[1726121425870,6.6328,135.69,135.64,8.10925256]
[1726121426367,6.6328,135.69,135.64,6.635]
[1726121427163,6.6328,135.69,135.65,1.47411846]
[1726121428048,6.6328,135.69,135.64,6.635]
[1726121428460,6.6333,135.68,135.63,30.412484]
[1726121428647,6.6333,135.68,135.63,6.6356]
[1726121430066,6.6338,135.67,135.62,23.2254]
[1726121430361,6.6342,135.66,135.62,16.5893]
[1726121430673,0.0846181,135.7,135.59,16.7754298]
[1726121430674,22.4719,135.68,135.59,16.7754298]
[1726121432076,30.18147277,135.68,135.59,16.7754298]
[1726121432291,6.6352,135.64,135.59,23.4129298]
[1726121432760,6.6346,135.66,135.59,16.7754298]
[1726121433755,22.4719,135.68,135.59,16.7754298]
[1726121434276,6.6342,135.66,135.61,6.6366]
[1726121437772,6.6338,135.67,135.62,6.6361]
[1726121438775,6.6338,135.67,135.6,23.776884]
[1726121438776,22.4633,135.68,135.63,6.6356]
[1726121438957,15.8297,135.68,135.62,23.776884]
[1726121439164,15.8297,135.68,135.61,16.5907]
[1726121439947,6.6341,135.67,135.62,6.6361]
[1726121440557,6.6342,135.66,135.62,6.6361]
[1726121440958,6.6342,135.66,135.61,23.2273]
[1726121443376,6.6352,135.64,135.59,23.9586138]
[1726121443574,6.6358,135.63,135.59,0.1817298]
[1726121444859,6.6348,135.65,135.6,6.637]
[1726121445079,6.6348,135.65,135.61,6.6366]
[1726121445387,6.6342,135.66,135.61,6.6366]
[1726121447662,6.6347,135.65,135.6,6.637]
[1726121451277,6.6347,135.65,135.61,6.6366]
[1726121451873,6.6347,135.65,135.6,6.637]
[1726121455787,6.6353,135.64,135.59,6.8192298]
[1726121463403,6.6347,135.65,135.59,23.9586138]
[1726121463699,6.6343,135.66,135.62,6.6361]
[1726121463901,15.8297,135.68,135.61,23.776884]
[1726121464508,22.4633,135.68,135.63,6.6356]
[1726121466203,6.6338,135.67,135.62,6.6361]
[1726121474093,6.6343,135.66,135.61,30.413384]
[1726121474302,6.6343,135.66,135.61,6.6365]
[1726121476420,15.8297,135.68,135.6,16.592]
[1726121476582,6.6356,135.64,135.6,16.592]
[1726121476782,32.4136,135.68,135.59,0.1817298]
[1726121477209,6.4383,135.67,135.59,0.1817298]
[1726121478390,6.6357,135.63,135.59,0.1817298]
[1726121479612,6.6352,135.64,135.59,6.8193298]
[1726121479826,6.6348,135.65,135.6,6.6371]
[1726121480227,6.6343,135.66,135.61,6.6365]
[1726121483116,6.6347,135.65,135.61,6.6365]
[1726121486718,6.6347,135.65,135.6,6.6371]
[1726121494902,6.6352,135.64,135.59,23.4126298]
[1726121495402,6.6352,135.64,135.6,6.6371]
[1726121498011,6.6347,135.65,135.6,6.6369]
[1726121498205,6.6353,135.64,135.59,16.7751298]
[1726121499024,6.6353,135.64,135.59,23.4126298]
[1726121499210,6.6358,135.63,135.59,16.7751298]
[1726121499737,6.6362,135.62,135.59,0.1817298]
[1726121500734,6.6357,135.63,135.59,0.1817298]
[1726121503537,6.6364,135.62,135.59,0.1817298]
[1726121514512,6.6368,135.61,135.59,0.1817298]
[1726121515147,6.6371,135.6,135.59,0.1817298]
[1726121517221,6.6367,135.61,135.59,0.1817298]
[1726121520459,6.6362,135.62,135.59,0.1817298]
[1726121520622,16.6097,135.64,135.59,6.8192298]
[1726121520828,6.4383,135.67,135.6,6.637]
[1726121521144,6.6354,135.64,135.59,6.8192298]
[1726121535051,6.6358,135.63,135.59,0.1817298]
[1726121538072,66.5861,135.66,135.59,0.1817298]
[1726121538251,23.776884,135.65,135.59,0.1817298]
[1726121538448,6.6371,135.6,135.59,0.1817298]
[1726121540151,6.6389,135.57,135.55,0.2663479]
[1726121540757,6.6391,135.56,135.55,0.2663479]
[1726121564788,30.415984,135.56,135.55,0.2663479]
[1726121573577,80.415984,135.56,135.55,0.2663479]
[1726121575786,30.415984,135.56,135.55,0.2663479]
[1726121576804,80.415984,135.56,135.55,0.2663479]
[1726121577303,30.415984,135.56,135.55,0.2663479]
[1726121578701,6.6391,135.56,135.55,0.2663479]
[1726121579282,32.55597589,135.59,135.55,0.2663479]
[1726121579597,15.93817589,135.59,135.55,0.2663479]
[1726121579907,3.01617589,135.59,135.55,0.2663479]
[1726121580197,6.639,135.57,135.55,0.2663479]
[1726121580424,6.6391,135.56,135.55,0.2663479]
[1726121587398,18.63892727,135.61,135.55,0.2663479]
[1726121587595,88.6733,135.64,135.55,0.2663479]
[1726121587908,6.6382,135.58,135.55,0.2663479]
[1726121590917,6.6377,135.59,135.55,0.2663479]
[1726121592185,6.6372,135.6,135.55,6.9058479]
[1726121592387,6.6372,135.6,135.55,8.3811888]
[1726121592687,6.6369,135.61,135.56,6.6389]
[1726121592885,6.6377,135.59,135.55,0.2663479]
[1726121593092,19.63844618,135.64,135.55,0.2663479]
[1726121594307,6.6377,135.59,135.55,0.2663479]
[1726121595192,6.6381,135.58,135.55,0.2663479]
[1726121596509,6.6377,135.59,135.55,0.2663479]
[1726121597109,6.637,135.61,135.55,8.38075622]
[1726121597686,6.6377,135.59,135.55,1.74165622]
[1726121598502,6.6372,135.6,135.55,8.38115622]
[1726121599525,6.6372,135.6,135.55,6.9058479]
[1726121600203,6.6372,135.6,135.55,8.38104638]
[1726121600404,16.5885,135.64,135.56,6.6387]
[1726121600997,6.6375,135.6,135.55,0.2663479]
[1726121602523,16.5885,135.64,135.55,0.2663479]
[1726121602524,6.6378,135.59,135.55,0.2663479]
[1726121603046,6.637,135.61,135.56,6.639]
[1726121604309,6.6372,135.6,135.55,6.9058479]
[1726121607017,6.6378,135.59,135.55,0.2663479]
[1726121609537,16.5885,135.64,135.55,6.9058479]
[1726121610036,6.6376,135.6,135.55,6.9058479]
[1726121610243,6.6376,135.59,135.55,6.9058479]
[1726121612341,6.6376,135.59,135.55,0.2663479]
[1726121612518,6.6382,135.58,135.55,0.2663479]
[1726121613220,6.6376,135.59,135.55,0.2663479]
[1726121615148,6.6367,135.61,135.56,23.236]
[1726121616357,2.91854141,135.65,135.56,23.236]
[1726121616358,6.6372,135.6,135.56,16.597]
[1726121624852,6.6377,135.59,135.55,6.9058479]
[1726121627650,6.6377,135.59,135.55,0.2663479]
[1726121629833,6.6382,135.58,135.55,0.2663479]
[1726121630829,16.5924,135.61,135.55,0.2663479]
[1726121631958,6.6382,135.58,135.55,0.2663479]
[1726121632655,23.776884,135.62,135.55,0.2663479]
[1726121632831,23.776884,135.62,135.55,16.8646479]
[1726121633037,6.6378,135.59,135.55,23.5041479]
[1726121633245,6.6378,135.59,135.55,16.8646479]
[1726121636057,16.6217,135.63,135.55,0.2663479]
[1726121636356,6.6372,135.6,135.55,6.9058479]
[1726121642367,6.6377,135.59,135.55,0.2663479]
[1726121642562,16.6217,135.63,135.55,0.2663479]
[1726121642752,16.5913,135.62,135.55,0.2663479]
[1726121642947,6.6387,135.57,135.55,0.2663479]
[1726121643537,6.6382,135.58,135.55,0.2663479]
[1726121643739,16.6217,135.63,135.55,0.2663479]
[1726121644052,6.6367,135.61,135.56,6.6391]
[1726121644252,16.6217,135.63,135.56,6.6391]